[Event "US Masters 2022"]
[Site "Charlotte"]
[Date "2022.11.24"]
[Round "1.6"]
[White "Hambleton, Aman"]
[Black "Deng, Henry"]
[Result "1-0"]
[ECO "D12"]
[WhiteElo "2437"]
[BlackElo "2087"]
[Annotator "TA"]
[PlyCount "131"]
[EventDate "2022.11.23"]
[EventType "swiss"]
[EventCountry "USA"]
[SourceTitle "playchess.com"]
[Source "ChessBase"]
[SourceQuality "1"]
[TimeControl "5400+30"]

{[%evp 17,131,18,34,37,32,27,39,45,101,80,66,75,123,79,78,89,78,74,118,125,156,177,206,208,184,129,130,127,145,113,179,104,116,105,160,135,258,246,247,195,182,164,188,202,227,225,215,208,211,185,192,160,163,164,171,174,370,358,845,791,1187,666,640,516,983,987,1335,1030,1211,1102,1164,1162,4294,2077,4133,4225,2763,2726,2337,2116,2112,0,1238,1314,1095,889,29966,29966,29972,29973,29973,29974,29981,29982,29983,29984,29985,29986,29986,29987,29987,29988,29988,29989,29989,29984,29984,29984,29984,29984,29993,29994,29994,29995,29995,29996]} 1. d4 {[%emt 0:00:24]} d5 {[%emt 0:00:08]} 2. c4 {[%emt 0:00:59]} c6 {[%emt 0:00:15]} 3. Nf3 {[%emt 0:02:42]} Nf6 {[%emt 0:00:43]} 4. e3 {[%emt 0:00:25]} Bf5 {[%emt 0:01:23]} 5. Nc3 {[%emt 0:03:10]} e6 {[%emt 0:00:52]} 6. Bd3 {[%emt 0:04:50]} Bxd3 {[%emt 0:02:28]} 7. Qxd3 {[%emt 0:00:09]} Nbd7 {[%emt 0:02:47]} 8. O-O {[%emt 0:00:22]} Bd6 {[%emt 0:01:22] Recently 8...Bb4 got a lot of attention.} 9. e4 {[%emt 0:03:02]} dxc4 {[%emt 0:04:23]} 10. Qxc4 {[%emt 0:00:40] D12: Slav Defence: 3 Nf3 Nf6 4 e3 Bf5.} e5 {[%emt 0:00:45]} 11. Rd1 {[%emt 0:10:09]} Qc7 {[%emt 0:05:35]} 12. Bg5 {[%emt 0:07:57] [#] Bxf6 is the strong threat. White is slightly better.} exd4 $146 {[%emt 0:10:27]} (12... O-O $14) ({Predecessor:} 12... O-O 13. Rac1 Rad8 14. Nb5 cxb5 15. Qxc7 Bxc7 16. Rxc7 h6 17. Bxf6 Nxf6 18. Rxb7 Nxe4 {1-0 (70) Liyanage,R (1699)-Arunakirinathan,A (1261) Tornelo INT 2021}) 13. Bxf6 {[%emt 0:26:32]} (13. Rxd4 Ne5 14. Nxe5 Bxe5 $11) (13. Nxd4 $6 Bxh2+ 14. Kf1 Be5 $15) 13... gxf6 {[%emt 0:06:59]} 14. Qxd4 {[%emt 0:06:13]} Be5 {[%emt 0:03:31]} ({Black should play} 14... Bc5 15. Qc4 Bd6) 15. Qc4 {[%emt 0:01:47]} O-O {[%emt 0:09:24]} 16. g3 {[%emt 0:04:00]} Rad8 {[%emt 0:11:45]} 17. Nh4 {[%emt 0:09:31] White is much more active.} b5 {[%emt 0:05:49]} 18. Qe2 {[%emt 0:03:08]} Kh8 {[%emt 0:01:42]} 19. Rac1 {[%emt 0:01:45][%cal Oc3d5]} Qb6 {[%emt 0:04:10]} 20. Nf5 {[%emt 0:01:41]} Nc5 {[%emt 0:05:03]} 21. Qc2 {[%emt 0:07:06]} (21. Qg4 $6 Rg8 22. Qe2 Ne6 $16) (21. Rxd8 $18 Rxd8 22. Nh6 (22. Qg4 Rg8 $16)) 21... Ne6 {[%emt 0:04:20]} 22. Ne2 {[%emt 0:00:14] Pair of Knights!} c5 {[%emt 0:05:49]} 23. b3 {[%emt 0:02:42]} Rfe8 {[%emt 0:03:59]} (23... Qb7 $16) 24. Kg2 {[%emt 0:00:33]} ({Better is} 24. Rd5 $18) 24... Qb7 $16 {[%emt 0:02:15]} 25. h4 {[%emt 0:01:20]} Bd4 {[%emt 0:01:59]} (25... a5 $142) 26. f3 {[%emt 0:00:27][%cal Ob3b4]} Rd7 {[%emt 0:01:22] Prevents b4.} (26... Qb6 $16 {was necessary.} 27. Nexd4 cxd4) 27. Qd2 $18 {[%emt 0:01:15][%cal Re2d4]} Red8 {[%emt 0:02:00]} 28. Nexd4 {[%emt 0:00:44]} Nxd4 {[%emt 0:00:40]} 29. Qh6 {[%emt 0:00:31][%csl Gf5][%cal Rh6g7]} (29. Rxc5 $2 Nxf5 30. Qc3 Rxd1 $19) 29... Nxf5 {[%emt 0:00:26]} 30. Qxf6+ {[%emt 0:00:03]} Kg8 {[%emt 0:00:52] [#]} 31. Qg5+ {[%emt 0:00:57]} (31. Qxd8+ $6 Rxd8 32. Rxd8+ Kg7 33. exf5 Qe7 $16) 31... Kf8 {[%emt 0:01:27]} 32. Rxd7 $40 {[%emt 0:00:14][%mdl 128] White goes for the king.} ({Stronger than} 32. Qxd8+ Rxd8 33. Rxd8+ Ke7 $15) 32... Qxd7 {[%emt 0:00:22]} 33. exf5 {[%emt 0:00:09] And now Rc2 would win.} (33. Qxf5 $2 {loses.} Qd2+ 34. Kh3 Qxc1 $19) 33... Qd2+ {[%emt 0:00:27]} 34. Qxd2 {[%emt 0:01:09]} Rxd2+ {[%emt 0:00:05][%mdl 4096] Endgame KR-KR} 35. Kh3 {[%emt 0:00:04]} c4 {[%emt 0:00:40]} 36. bxc4 {[%emt 0:00:33]} bxc4 {[%emt 0:00:03]} (36... b4 {was worth a try.}) 37. Rxc4 {[%emt 0:00:33]} Rxa2 $2 {[%emt 0:00:09]} (37... h5 38. f6 Kg8) 38. f6 {[%emt 0:00:31][%cal Rc4c8] [#]} Ke8 {[%emt 0:00:01]} 39. Re4+ {[%emt 0:00:20]} Kf8 {[%emt 0:00:13]} 40. Rb4 {[%emt 0:00:52][%cal Rb4b8]} Ke8 {[%emt 0:00:15]} (40... Re2 $142 41. g4 Re8) 41. g4 {[%emt 0:00:15]} a5 {[%emt 0:01:43]} 42. Re4+ {[%emt 0:00:54]} Kf8 {[%emt 0:00:07]} 43. Rc4 {[%emt 0:00:33][%cal Rc4c8]} Ke8 {[%emt 0:00:29]} 44. Rc7 {[%emt 0:00:26]} a4 {[%emt 0:01:28]} 45. Re7+ {[%emt 0:00:12]} Kf8 {[%emt 0:00:02]} 46. Ra7 {[%emt 0:00:07][%cal Ra7a8]} Ke8 {[%emt 0:00:02]} 47. g5 {[%emt 0:00:12]} a3 {[%emt 0:00:25]} 48. Re7+ {[%emt 0:00:14]} Kf8 {[%emt 0:00:13]} 49. Ra7 {[%emt 0:00:05][%cal Ra7a8]} Ke8 {[%emt 0:00:02]} 50. Kg3 {[%emt 0:01:12]} Ra1 {[%emt 0:00:45]} 51. Kg4 {[%emt 0:00:21]} a2 {[%emt 0:00:29]} 52. Kh5 {[%emt 0:00:05] White mates.} Kd8 {[%emt 0:00:46]} 53. Kh6 {[%emt 0:01:48]} (53. Rxf7 $2 {perishes.} Re1 54. Ra7 a1=Q 55. Rxa1 Rxa1 $19) 53... Rh1 {[%emt 0:00:42]} 54. Rxa2 {[%emt 0:00:06]} Rxh4+ {[%emt 0:00:03]} 55. Kg7 {[%emt 0:00:07]} Rf4 {[%emt 0:00:08]} 56. Kxf7 {[%emt 0:01:11]} Rxf3 {[%emt 0:00:14]} 57. Rd2+ {[%emt 0:00:06]} Kc7 {[%emt 0:00:02]} 58. Kg7 {[%emt 0:00:12]} Rf5 {[%emt 0:00:08]} 59. f7 {[%emt 0:00:47]} Rxg5+ {[%emt 0:00:04]} 60. Kf6 {[%emt 0:00:20]} Rg6+ {[%emt 0:05:43]} 61. Ke7 {[%emt 0:00:39]} Rg7 {[%emt 0:00:00]} 62. Rc2+ {[%emt 0:00:10]} Kb7 {[%emt 0:00:00]} 63. Ke8 {[%emt 0:00:10]} Rg5 {[%emt 0:00:00]} 64. f8=Q {[%emt 0:00:12]} Re5+ {[%emt 0:00:00]} 65. Kd7 {[%emt 0:00:09]} Rd5+ {[%emt 0:00:00]} 66. Ke6 {[%emt 0:00:06] Weighted Error Value: White=0.26 (precise) /Black=0.35} 1-0

[Event "US Masters 2022"]
[Site "Charlotte"]
[Date "2022.11.24"]
[Round "1.7"]
[White "Theodorou, Nikolas"]
[Black "Costello, Alexander"]
[Result "1-0"]
[ECO "A16"]
[WhiteElo "2598"]
[BlackElo "2224"]
[Annotator "TA"]
[PlyCount "75"]
[EventDate "2022.11.23"]
[EventType "swiss"]
[EventCountry "USA"]
[SourceTitle "playchess.com"]
[Source "ChessBase"]
[SourceQuality "1"]
[TimeControl "5400+30"]

{[%evp 9,75,27,25,0,45,38,38,29,36,35,48,17,30,10,8,7,20,18,11,22,18,20,68,58,77,66,29,45,52,46,151,139,121,141,165,131,139,145,147,133,141,126,183,29,172,175,215,205,194,201,457,455,814,812,803,793,784,748,1462,1070,6387,6224,1220,1231,29995,29995,29997,29998]} 1. Nf3 {[%emt 0:00:05]} Nf6 {[%emt 0:01:51]} 2. c4 {[%emt 0:00:29]} g6 {[%emt 0:04:39]} 3. Nc3 {[%emt 0:02:45]} d5 {[%emt 0:00:11]} 4. cxd5 {[%emt 0:00:21]} Nxd5 {[%emt 0:00:07]} 5. h4 {[%emt 0:00:25][%cal Bh2h4,Bh4h5,Bh5h6][%mdl 32]} Bg7 {[%emt 0:04:25]} 6. h5 {[%emt 0:01:23] A16: English Opening: 1...Nf6 with ...d5.} c5 {[%emt 0:04:45]} 7. h6 {[%emt 0:06:12]} (7. Qb3 {keeps more tension.} Nb4 8. a3 Be6 9. Qa4+) 7... Bf6 {[%emt 0:01:44]} 8. e4 {[%emt 0:10:53] Bb5+ is the strong threat. White is slightly better.} Nxc3 {[%emt 0:00:09] [#]} 9. dxc3 $146 {[%emt 0:02:47]} ({Predecessor:} 9. bxc3 Nc6 10. Bb5 Bd7 11. Qe2 Qc7 12. Bxc6 Bxc6 13. O-O O-O 14. d4 cxd4 15. cxd4 {1-0 (34) Gunina,V (2431)-Lagno,K (2546) Chess.com INT 2020}) 9... Qc7 {[%emt 0:08:25]} 10. Bb5+ {[%emt 0:05:37]} Bd7 {[%emt 0:04:14]} 11. Bxd7+ {[%emt 0:03:00]} Nxd7 {[%emt 0:00:12]} 12. O-O {[%emt 0:01:00]} O-O {[%emt 0:00:54]} 13. Qe2 {[%emt 0:02:05]} Rfd8 {[%emt 0:11:19]} 14. Be3 {[%emt 0:04:17]} c4 {[%emt 0:02:48]} 15. Rad1 {[%emt 0:01:19][%cal Ba1d1,Bd1d5,Bd5a5][%mdl 32]} Qc6 {[%emt 0:10:32]} (15... e6 $11 {was preferrable.}) 16. Bf4 $14 {[%emt 0:06:44]} e5 {[%emt 0:08:26]} 17. Bg3 {[%emt 0:00:09]} Qe6 {[%emt 0:00:25]} 18. Rd5 {[%emt 0:00:08] Against Nc5} Nb6 {[%emt 0:03:30]} 19. Ra5 {[%emt 0:07:27][%cal Rg3e5]} Qg4 {[%emt 0:00:26]} ({Black should try} 19... Rd3 $14) 20. Bxe5 $16 {[%emt 0:02:45]} Bxe5 {[%emt 0:02:00]} 21. Rxe5 {[%emt 0:00:33]} Rd3 {[%emt 0:08:53]} 22. Re7 {[%emt 0:05:38][%cal Oe7f7]} Nd7 {[%emt 0:01:22]} 23. b3 $1 {[%emt 0:05:03]} b5 {[%emt 0:08:21]} 24. bxc4 $1 {[%emt 0:07:07]} bxc4 {[%emt 0:00:02]} 25. Qb2 $1 {[%emt 0:01:27] Strongly threatening Qb7.} Rd8 {[%emt 0:04:27] [#]} (25... Rxf3 $16 {keeps fighting.} 26. Qb7 (26. Rxd7 Qxd7 27. gxf3 Qh3 $11) 26... Rf8) 26. Nd4 $2 {[%emt 0:06:36]} (26. Qb7 $1 $18 Rxf3 27. Qc7 (27. Qxa7 Kf8 $11)) 26... Rd1 {[%emt 0:03:09] A mistake that costs the game.} (26... Qg5 $1 $11 27. Nc6 Nb8 28. Nxd8 Qxe7) 27. g3 $1 $18 {[%emt 0:05:19] Hoping for Rxd1.} Rd3 {[%emt 0:00:28]} 28. Kg2 $1 {[%emt 0:01:21]} Qg5 {[%emt 0:00:37]} 29. Nc6 {[%emt 0:04:08][%csl LRa7,LRd8] Black must now prevent Qb7.} (29. Qb4 Nc5 30. Rc7 (30. Rxa7 Nxe4 31. Qb7 Rxg3+ 32. fxg3 Qxg3+ 33. Kh1 Qh4+ 34. Kg2 Qg3+ 35. Kh1 Qh4+ 36. Kg2 Qg3+ $11) 30... Nxe4 31. Qxc4 Rxg3+ 32. fxg3 Qxg3+ 33. Kh1 Qh4+ 34. Kg2 (34. Kg1 Qg3+ 35. Kh1 Qh4+ 36. Kg2 Qg3+ 37. Kh1 $11) 34... Qg3+ 35. Kh1 Qh4+ 36. Kg2 (36. Kg1 Qg3+ 37. Kh1 $11) 36... Qg3+ $11) 29... Qf6 $2 {[%emt 0:05:03] [#]} (29... Nb8 {might work better.} 30. Nxd8 Qxe7) 30. Qb7 $1 {[%emt 0:02:16] Active counter play!} Qf3+ {[%emt 0:00:15]} (30... Nc5 $2 31. Nxd8 (31. Qxa7 $2 {too greedy.} Qxc6 32. Rxf7 Nd7 $17) 31... Rxd8 32. Qc7) (30... Kf8 $142 31. e5 (31. Qxa7 $2 Qxc6 32. Qa3 Rd6 $19) (31. Nxd8 Qxe7 32. Nc6 Qxe4+ 33. Kg1 Rd6 $16) 31... Qf3+ 32. Kg1 Qg4 33. Rxf7+ (33. Qxa7 Rxg3+ 34. fxg3 Qxg3+ 35. Kh1 Qh3+ 36. Kg1 Qg3+ 37. Kh1 Qh3+ 38. Kg1 Qg3+ $11) 33... Kxf7) 31. Kg1 {[%emt 0:00:06]} Qg4 {[%emt 0:00:04] [#]} 32. Qc7 $1 {[%emt 0:00:14]} ({Not} 32. Nxd8 Rxg3+ 33. fxg3 Qxg3+ 34. Kh1 Qh3+ 35. Kg1 Qg3+ 36. Kh1 Qh3+ 37. Kg1 Qg3+ $11) 32... Rf8 {[%emt 0:02:47]} 33. Nb4 {[%emt 0:01:14][%cal Bc6b4,Bb4d5,Bd5f6][%mdl 32]} ({And not} 33. Qxa7 Rxg3+ 34. fxg3 Qxg3+ 35. Kh1 Qh3+ 36. Kg1 Qg3+ 37. Kh1 Qh3+ 38. Kg1 Qg3+ $11) 33... Rd1 {[%emt 0:00:00]} 34. Nd5 {[%emt 0:00:34]} Rxf1+ {[%emt 0:00:14]} 35. Kxf1 {[%emt 0:00:03]} Qh3+ {[%emt 0:00:25]} 36. Kg1 {[%emt 0:00:11]} Nb6 {[%emt 0:00:01] [#]} 37. Rxf7 $3 {[%emt 0:01:12][%mdl 512]} Rxf7 {[%emt 0:00:23] [#]} (37... Qh2+ 38. Kxh2) 38. Nf6+ $1 {[%emt 0:00:05][%mdl 576] Weighted Error Value: White=0.13 (very precise) /Black=0.55} 1-0

[Event "US Masters 2022"]
[Site "Charlotte"]
[Date "2022.11.24"]
[Round "1.8"]
[White "Atanasov, Anthony"]
[Black "Burke, John M"]
[Result "1/2-1/2"]
[ECO "A48"]
[WhiteElo "2215"]
[BlackElo "2580"]
[Annotator "TA"]
[PlyCount "108"]
[EventDate "2022.11.23"]
[EventType "swiss"]
[EventCountry "USA"]
[SourceTitle "playchess.com"]
[Source "ChessBase"]
[SourceQuality "1"]
[TimeControl "5400+30"]

{[%evp 9,108,22,5,6,14,20,21,13,18,24,14,0,-1,-5,-1,-16,-3,-9,-2,-8,3,-34,-53,-54,-37,-39,-8,-33,-19,-15,-16,-22,0,-76,-64,-64,-55,-72,-40,-69,-76,-90,-86,-108,-105,-100,-90,-94,0,0,46,11,9,20,21,12,91,12,14,12,13,13,12,0,0,0,0,0,-7,-7,-1,0,0,-9,-1,-28,-25,-82,-32,-106,-92,-120,-120,-183,-68,-68,-79,-106,-37,-73,-73,-74,0,0,0,0,0,0,0,-8,0]} 1. d4 {[%emt 0:00:34]} Nf6 {[%emt 0:00:10]} 2. Nf3 {[%emt 0:00:41]} g6 {[%emt 0:00:06]} 3. Qd3 {[%emt 0:03:42]} Bg7 {[%emt 0:04:06]} 4. e4 {[%emt 0:00:14]} d6 {[%emt 0:00:42]} 5. Be2 {[%emt 0:02:30]} O-O {[%emt 0:00:06]} 6. O-O {[%emt 0:01:47] A48: 1 d4 Nf6 2 Nf3 g6: Torre, London and Colle Systems.} c5 {[%emt 0:02:25]} 7. c3 {[%emt 0:06:24][%cal Bc2c3,Bc3d4,Bd4d5][%mdl 32]} cxd4 {[%emt 0:17:58]} 8. cxd4 {[%emt 0:00:16] [#]} Nc6 $146 {[%emt 0:00:05]} ({Predecessor:} 8... Bg4 9. h3 Bxf3 10. Bxf3 Nc6 11. b3 Rc8 12. Na3 Nxd4 13. Bb2 Nxf3+ 14. Qxf3 Qd7 15. Nc4 b5 16. Bxf6 Bxf6 {0-1 (16) Gautason,K-Kjoita,H Mariehamn 2008}) 9. d5 {[%emt 0:07:12]} Nb4 {[%emt 0:00:35]} 10. Qc4 {[%emt 0:01:54]} a5 {[%emt 0:02:47][%cal Ob7b5] next ...b5! is good for Black.} 11. Nc3 {[%emt 0:04:26]} Bd7 {[%emt 0:04:03]} 12. a3 {[%emt 0:04:29] Prevents e6.} Na6 {[%emt 0:02:00]} 13. e5 {[%emt 0:04:55]} dxe5 {[%emt 0:06:43]} 14. Nxe5 {[%emt 0:00:18]} Bf5 {[%emt 0:02:55]} 15. Be3 {[%emt 0:08:17]} Rc8 {[%emt 0:11:15]} 16. Qb3 {[%emt 0:15:07]} Ne4 $1 {[%emt 0:04:34]} 17. Nxe4 {[%emt 0:06:53][%cal Oe5f7] Threatens to win with Nxf7!} Bxe4 {[%emt 0:00:14]} 18. Bxa6 {[%emt 0:01:55]} (18. Qxb7 Bxe5 19. Qxa6 Bxd5 $17) 18... Bxe5 {[%emt 0:01:16]} 19. Bxb7 {[%emt 0:01:22]} Rc2 {[%emt 0:03:46] ...Qc7 is the strong threat.} 20. Qa4 {[%emt 0:05:31]} (20. Bh6 {keeps more tension.} Rxb2 21. Qe3 Rxb7 22. Rad1) 20... Bf5 {[%emt 0:01:04]} (20... Bxd5 $2 21. Bxd5 (21. Qxc2 Bxb7 22. f4 Bg7 $16) 21... Rxb2 22. Bc6 $18) 21. Bh6 {[%emt 0:03:07] [#]} (21. Rac1 $11 Rxb2 22. Bc6) 21... Qc7 $1 {[%emt 0:07:47]} 22. Bxf8 {[%emt 0:01:41]} Kxf8 {[%emt 0:00:04]} 23. Bc6 {[%emt 0:01:13]} Bxh2+ {[%emt 0:00:28]} (23... Bxb2 24. Rab1 Be5 25. g3 $14) 24. Kh1 {[%emt 0:00:01]} Be5 {[%emt 0:01:47]} 25. Rac1 {[%emt 0:07:17]} Rxb2 {[%emt 0:00:54]} 26. f4 {[%emt 0:02:09]} Bf6 {[%emt 0:01:30] This pair of bishops is nice.} 27. d6 {[%emt 0:01:38]} Qxd6 {[%emt 0:01:53]} 28. Qxa5 {[%emt 0:00:29]} Bd4 {[%emt 0:07:20] Against Qc5} (28... Bg4 $17 {Strongly threatening ...Kg7.} 29. Bd5 Kg7) 29. Rfd1 $36 {[%emt 0:02:49][%mdl 2048] White fights for an advantage.} f6 {[%emt 0:10:03]} (29... Bc2 $11 30. Rd2 Bb3) 30. Qd5 {[%emt 0:01:39] Dancing on a razor blade.} (30. Bf3 $5 {[%cal Rc1c6]}) 30... Qxd5 {[%emt 0:00:08]} 31. Bxd5 {[%emt 0:00:01]} Be3 {[%emt 0:00:51]} 32. Rc4 {[%emt 0:01:18]} h5 {[%emt 0:01:31]} (32... Bg4 $1 $11 {remains equal.} 33. Bf3 Bxf3 34. gxf3 Ra2) 33. Be4 {[%emt 0:01:16]} ({Better is} 33. a4 $1 $16) 33... Bg4 {[%emt 0:01:00]} 34. Rb1 {[%emt 0:00:43]} Ra2 {[%emt 0:00:11]} 35. Bxg6 {[%emt 0:02:47]} Rxa3 {[%emt 0:00:05]} 36. f5 {[%emt 0:00:31]} Ra5 {[%emt 0:01:02]} 37. Re1 {[%emt 0:00:55]} Bc5 {[%emt 0:00:54]} 38. Kh2 {[%emt 0:00:50]} Bd6+ {[%emt 0:00:15]} 39. Kg1 {[%emt 0:00:09]} Ra2 {[%emt 0:01:07]} 40. Rec1 {[%emt 0:00:48]} Kg7 {[%emt 0:00:37]} 41. R4c2 {[%emt 0:00:24]} Ra5 {[%emt 0:00:11]} 42. Rf1 {[%emt 0:00:43]} Kh6 {[%emt 0:00:17][%mdl 1024] Black has compensation.} 43. Kf2 {[%emt 0:00:21]} (43. Rfc1 $11 {keeps the balance.}) 43... Kg5 {[%emt 0:00:34]} (43... Bc5+ $17 44. Kg3 e5) 44. Ke3 {[%emt 0:00:26]} (44. Rc8 $15) 44... Rd5 {[%emt 0:01:01] Hoping for ...Bc5+.} 45. Ke4 {[%emt 0:00:17]} e6 {[%emt 0:01:01] aiming for ...Bc5.} 46. Bh7 {[%emt 0:00:36]} (46. Rc8 $17) 46... Re5+ {[%emt 0:02:12]} (46... Kh6 $1 $19 47. fxe6 (47. Bg6 Bc5 $17) 47... Re5+ 48. Kd4 Kxh7 49. Rxf6 Re1 50. Rf7+ Kg6) 47. Kd4 $15 {[%emt 0:00:01]} exf5 {[%emt 0:00:15]} 48. Rc8 {[%emt 0:00:25] [#] Against Re8} Kh4 {[%emt 0:01:02]} (48... Kh6 $1 $17 {[%cal Rh6h7]} 49. Rc6 Re4+ 50. Kd5 Ba3) 49. Rg8 {[%emt 0:00:47]} Bc5+ {[%emt 0:01:08]} 50. Kc3 {[%emt 0:00:01] [#]} Re3+ {[%emt 0:00:35]} ({Black should try} 50... Be3 $1 $17) 51. Kd2 {[%emt 0:00:43] The position is equal.} Re2+ {[%emt 0:00:23]} 52. Kd3 {[%emt 0:00:01]} Re3+ {[%emt 0:00:49]} (52... Rxg2 $5 53. Rh1+ $8 Kg3 $11) 53. Kd2 {[%emt 0:00:04]} Re2+ {[%emt 0:00:36]} 54. Kd3 {[%emt 0:00:01][%cal Og8g4] Black must now prevent Rxg4+!} Re3+ {[%emt 0:00:12] Weighted Error Value: White=0.17 (very precise) /Black=0.13 (very precise)} (54... Rxg2 $5 55. Rh1+ $8 Kg3 $11) 1/2-1/2